fUSD/lending_fUSD_20250109
["ID","MTS","AMOUNT","RATE_DAILY","PERIOD"]
[348320938,1736443884873,-1648.35,0.00011164,2]
[348320939,1736443884889,-1006.5601984,0.00011164,2]
[348320940,1736443884899,-870.9198016,0.00011679,2]
[348320941,1736443884911,-400.0271984,0.00011679,2]
[348320942,1736443884920,-188405.61501027,0.000123,2]
[348320943,1736443884953,-3904.6364026,0.000123,2]
[348320944,1736443884965,-11585.49986,0.000123,2]
[348320945,1736443884983,-3759.48788402,0.000123,2]
[348320946,1736443885551,-1602.36,9.794e-05,2]
[348320947,1736443885561,-1602.36,0.00010068,2]
[348320948,1736443885572,-1602.36,0.00010342,2]
[348320949,1736443885581,-1602.36,0.00010616,2]
[348320950,1736443885590,-359.81669112,0.0001089,2]
[348320951,1736443885602,-1242.54330888,0.0001089,2]
[348320952,1736443885611,-1602.36,0.00011164,2]
[348320953,1736443885620,-960.92718274,0.00011438,2]
[348320955,1736443885631,-250.41710891,0.00011438,2]
[348320956,1736443885643,-2150.95570835,0.00011438,2]
[348320957,1736443885653,-1602.36,0.00011438,2]
[348320958,1736443885662,-9622.0,0.00011679,2]
[348320959,1736443885671,-3362.3,0.00011712,2]
[348320960,1736443885680,-1602.36,0.00011712,2]
[348320961,1736443885690,-3362.3,0.00011986,2]
[348320962,1736443885700,-1602.36,0.00011986,2]
[348320963,1736443885710,-1602.36,0.0001226,2]
[348320964,1736443885719,-1693776.87534693,0.000123,2]
[348320965,1736443885731,-611.58584836,0.000123,2]
[348320966,1736443885742,-399.78581851,0.000123,2]
[348320967,1736443885759,-122111.38458703,0.000123,2]
[348320968,1736443885770,-342824.23082343,0.000123,2]
[348320969,1736443885850,-1196.61329237,0.000123,2]
[348320970,1736443885861,-3242.26354725,0.000123,2]
[348320971,1736443897504,1600.0,8.22e-05,2]
[348320972,1736443897546,500.0,8.22e-05,2]
[348320973,1736443897827,116.03576093,8.22e-05,2]
[348320974,1736443897850,4083.96423907,8.22e-05,2]
[348320975,1736444056641,1065.18744611,8.5e-05,2]
[348320987,1736444771476,3900.0,8.22e-05,2]
[348320988,1736444771637,950.84831482,8.22e-05,2]
[348320989,1736444771659,549.15168518,8.22e-05,2]
[348321019,1736444893893,614.27,8.219e-05,2]
[348321025,1736445031821,-500.0,8.7e-05,2]
[348321026,1736445031832,-281.81,8.829e-05,2]
[348321027,1736445031842,-319.4589,8.85e-05,2]
[348321028,1736445031851,-300.0,8.949e-05,2]
[348321029,1736445031861,-1384.16375,8.95e-05,2]
[348321030,1736445033009,-1292.5814419,8.95e-05,2]
[348321031,1736445033027,-794.70410026,8.95e-05,2]
[348321032,1736445033039,-6152.05092008,8.95e-05,2]
[348321033,1736445033051,-348.89010204,8.95e-05,2]
[348321034,1736445033130,-1424.8685997,8.95e-05,2]
[348321035,1736445033229,-12502.74108602,8.95e-05,2]
[348321036,1736445033239,-250.0,8.962e-05,2]
[348321037,1736445033250,-1000.0,8.962e-05,2]
[348321038,1736445033259,-250.0,8.962e-05,2]
[348321039,1736445033271,-295.61,9.061e-05,2]
[348321040,1736445033287,-150.0,9.233e-05,2]
[348321041,1736445033296,-250.0,9.243e-05,2]
[348321042,1736445033306,-258.05,9.254e-05,2]
[348321043,1736445033317,-9948.0,9.312e-05,2]
[348321044,1736445033326,-915.45462686,9.589e-05,2]
[348321045,1736445033337,-500.0,9.59e-05,2]
[348321046,1736445033346,-3900.0,9.59e-05,2]
[348321047,1736445033355,-1500.0,9.59e-05,2]
[348321048,1736445033365,-225.7818,9.594e-05,2]
[348321049,1736445033374,-220.1375,9.594e-05,2]
[348321050,1736445033385,-751.4992,9.594e-05,2]
[348321051,1736445033394,-31506.1529,9.594e-05,2]
[348321052,1736445033404,-5000.0,9.594e-05,2]
[348321053,1736445033413,-858.11602035,9.6e-05,5]
[348321054,1736445033423,-562.78,9.692e-05,2]
[348321055,1736445033432,-2880.05,9.692e-05,2]
[348321056,1736445033442,-4014.68,9.692e-05,2]
[348321057,1736445033455,-2100.5,9.692e-05,2]
[348321058,1736445033465,-500.0,9.692e-05,2]
[348321060,1736445033474,-1438.14,9.692e-05,2]
[348321061,1736445033484,-3285.44,9.692e-05,2]
[348321064,1736445033495,-500.0,9.692e-05,2]
[348321066,1736445033505,-500.0,9.692e-05,2]
[348321068,1736445033515,-500.0,9.692e-05,2]
[348321070,1736445033528,-500.0,9.692e-05,2]
[348321071,1736445033537,-500.0,9.692e-05,2]
[348321073,1736445033546,-941.34,9.692e-05,2]
[348321075,1736445033557,-500.0,9.692e-05,2]
[348321077,1736445033567,-500.0,9.692e-05,2]
[348321079,1736445033576,-815.78,9.693e-05,2]
[348321081,1736445033586,-500.0,9.693e-05,2]
[348321083,1736445033596,-500.0,9.693e-05,2]
[348321085,1736445033605,-1168.48,9.693e-05,2]
[348321087,1736445033614,-501.09327668,9.693e-05,2]
[348321089,1736445033624,-500.0,9.693e-05,2]
[348321091,1736445033634,-500.0,9.693e-05,2]
[348321093,1736445033644,-564.15,9.693e-05,2]
[348321095,1736445033653,-500.77021444,9.693e-05,2]
[348321097,1736445033664,-546.34,9.693e-05,2]
[348321099,1736445033674,-500.0,9.693e-05,2]
[348321101,1736445033683,-500.0,9.693e-05,2]
[348321103,1736445033693,-748.91,9.693e-05,2]
[348321105,1736445033703,-500.0,9.693e-05,2]
[348321107,1736445033712,-500.0,9.693e-05,2]
[348321109,1736445033722,-169.85559469,9.693e-05,2]
[348321111,1736445033732,-500.0,9.693e-05,2]
[348321113,1736445033742,-500.0,9.693e-05,2]
[348321115,1736445033752,-500.0,9.693e-05,2]
[348321117,1736445033762,-500.0,9.693e-05,2]
[348321119,1736445033777,-555.4,9.693e-05,2]
[348321120,1736445033786,-500.0,9.693e-05,2]
[348321122,1736445033796,-500.0,9.693e-05,2]
[348321125,1736445033809,-500.0,9.693e-05,2]
[348321126,1736445033819,-500.0,9.693e-05,2]
[348321128,1736445033830,-500.0,9.693e-05,2]
[348321131,1736445033840,-715.43,9.693e-05,2]
[348321132,1736445033850,-500.0,9.693e-05,2]
[348321134,1736445033859,-500.0,9.693e-05,2]
[348321137,1736445033870,-500.0,9.693e-05,2]
[348321139,1736445033879,-500.0,9.693e-05,2]
[348321141,1736445033890,-1079.05,9.693e-05,2]
[348321143,1736445033898,-500.0,9.693e-05,2]
[348321144,1736445033908,-500.0,9.693e-05,2]
[348321147,1736445033917,-500.0,9.693e-05,2]
[348321149,1736445033927,-500.0,9.693e-05,2]
[348321151,1736445033938,-588.27,9.693e-05,2]
[348321152,1736445033947,-500.0,9.693e-05,2]
[348321154,1736445033956,-500.0,9.693e-05,2]
[348321156,1736445033966,-500.0,9.693e-05,2]
[348321158,1736445033976,-500.0,9.693e-05,2]
[348321160,1736445033986,-500.0,9.693e-05,2]
[348321162,1736445033996,-668.81,9.693e-05,2]
[348321164,1736445034006,-500.0,9.693e-05,2]
[348321166,1736445034014,-500.0,9.693e-05,2]
[348321168,1736445034030,-723.52,9.693e-05,2]
[348321170,1736445034040,-500.0,9.693e-05,2]
[348321172,1736445034050,-500.0,9.693e-05,2]
[348321174,1736445034060,-718.01,9.693e-05,2]
[348321199,1736445034308,-160.18952003,9.693e-05,2]
[348321201,1736445034319,-984.26,9.693e-05,2]
[348321204,1736445034329,-500.0,9.693e-05,2]
[348321206,1736445034339,-593.67,9.693e-05,2]
[348321208,1736445034348,-500.0,9.693e-05,2]
[348321210,1736445034357,-500.0,9.693e-05,2]
[348321212,1736445034368,-500.0,9.693e-05,2]
[348321213,1736445034377,-500.0,9.693e-05,2]
[348321215,1736445034386,-500.0,9.693e-05,2]
[348321217,1736445034396,-500.0,9.693e-05,2]
[348321219,1736445034405,-500.0,9.693e-05,2]
[348321221,1736445034415,-1724.41,9.693e-05,2]
[348321223,1736445034425,-500.0,9.693e-05,2]
[348321225,1736445034434,-500.0,9.693e-05,2]
[348321227,1736445034445,-500.0,9.693e-05,2]
[348321229,1736445034455,-500.0,9.693e-05,2]
[348321231,1736445034468,-500.0,9.693e-05,2]
[348321233,1736445034477,-495.72300944,9.693e-05,2]
[348321235,1736445034487,-500.0,9.693e-05,2]
[348321236,1736445034497,-851.84,9.693e-05,2]
[348321238,1736445034507,-500.0,9.693e-05,2]
[348321240,1736445034516,-501.01498938,9.693e-05,2]
[348321242,1736445034528,-500.0,9.693e-05,2]
[348321243,1736445034540,-500.0,9.693e-05,2]
[348321245,1736445034549,-500.0,9.693e-05,2]
[348321247,1736445034559,-500.0,9.693e-05,2]
[348321249,1736445034570,-517.17,9.693e-05,2]
[348321251,1736445034580,-500.0,9.693e-05,2]
[348321252,1736445034589,-500.0,9.693e-05,2]
[348321254,1736445034599,-847.67,9.693e-05,2]
[348321256,1736445034609,-331.35263455,9.693e-05,2]
[348321258,1736445034618,-500.0,9.693e-05,2]
[348321259,1736445034627,-500.0,9.693e-05,2]
[348321261,1736445034636,-500.0,9.693e-05,2]
[348321263,1736445034646,-500.0,9.693e-05,2]
[348321265,1736445034656,-500.0,9.693e-05,2]
[348321267,1736445034665,-500.0,9.693e-05,2]
[348321268,1736445034675,-1132.14,9.693e-05,2]
[348321270,1736445034685,-500.26783216,9.693e-05,2]
[348321272,1736445034695,-500.0,9.693e-05,2]
[348321274,1736445034705,-658.3,9.693e-05,2]
[348321275,1736445034715,-500.0,9.693e-05,2]
[348321277,1736445034726,-620.56260363,9.693e-05,2]
[348321279,1736445034737,-500.62176611,9.693e-05,2]
[348321281,1736445034747,-500.0,9.693e-05,2]
[348321283,1736445034757,-500.0,9.693e-05,2]
[348321285,1736445034767,-500.0,9.693e-05,2]
[348321287,1736445034780,-500.83474581,9.693e-05,2]
[348321288,1736445034789,-500.0,9.693e-05,2]
[348321290,1736445034799,-500.0,9.693e-05,2]
[348321292,1736445034809,-500.8980088,9.693e-05,2]
[348321293,1736445034819,-674.56,9.693e-05,2]
[348321295,1736445034830,-500.0,9.693e-05,2]
[348321297,1736445034840,-500.0,9.693e-05,2]
[348321299,1736445034849,-500.0,9.693e-05,2]
[348321301,1736445034858,-500.0,9.693e-05,2]
[348321302,1736445034867,-500.0,9.693e-05,2]
[348321304,1736445034877,-500.0,9.693e-05,2]
[348321306,1736445034887,-500.0,9.693e-05,2]
[348321308,1736445034896,-500.0,9.693e-05,2]
[348321310,1736445034906,-500.0,9.693e-05,2]
[348321312,1736445034915,-1170.04,9.693e-05,2]
[348321314,1736445034925,-500.0,9.693e-05,2]
[348321315,1736445034937,-500.0,9.693e-05,2]
[348321317,1736445034947,-500.0,9.693e-05,2]
[348321319,1736445034956,-500.0,9.693e-05,2]
[348321321,1736445034966,-500.0,9.693e-05,2]
[348321322,1736445034975,-500.0,9.693e-05,2]
[348321324,1736445034986,-500.0,9.693e-05,2]
[348321326,1736445034995,-500.0,9.693e-05,2]
[348321327,1736445035005,-500.0,9.693e-05,2]
[348321329,1736445035014,-500.0,9.693e-05,2]
[348321331,1736445035028,-500.0,9.693e-05,2]
[348321333,1736445035037,-500.0,9.693e-05,2]
[348321335,1736445035046,-500.0,9.693e-05,2]
[348321336,1736445035056,-500.0,9.693e-05,2]
[348321338,1736445035066,-500.0,9.693e-05,2]
[348321340,1736445035076,-500.0,9.693e-05,2]
[348321342,1736445035086,-500.0,9.693e-05,2]
[348321344,1736445035096,-500.0,9.693e-05,2]
[348321346,1736445035105,-629.29,9.693e-05,2]
[348321348,1736445035115,-500.0,9.693e-05,2]
[348321350,1736445035125,-500.0,9.693e-05,2]
[348321352,1736445035135,-500.0,9.693e-05,2]
[348321354,1736445035145,-534.26311102,9.693e-05,2]
[348321355,1736445035155,-500.0,9.693e-05,2]
[348321357,1736445035164,-500.0,9.693e-05,2]
[348321359,1736445035174,-500.0,9.693e-05,2]
[348321361,1736445035184,-701.1,9.693e-05,2]
[348321362,1736445035194,-500.0,9.693e-05,2]
[348321364,1736445035203,-351.15721417,9.693e-05,2]
[348321366,1736445035212,-500.0,9.693e-05,2]
[348321368,1736445035222,-500.0,9.693e-05,2]
[348321370,1736445035231,-500.0,9.693e-05,2]
[348321372,1736445035240,-500.0,9.693e-05,2]
[348321373,1736445035249,-500.0,9.693e-05,2]
[348321375,1736445035259,-823.15,9.693e-05,2]
[348321377,1736445035269,-500.0,9.693e-05,2]
[348321379,1736445035282,-500.0,9.693e-05,2]
[348321381,1736445035291,-500.0,9.693e-05,2]
[348321383,1736445035301,-500.0,9.693e-05,2]
[348321384,1736445035310,-500.0,9.693e-05,2]
[348321386,1736445035320,-500.0,9.693e-05,2]
[348321388,1736445035329,-500.0,9.693e-05,2]
[348321390,1736445035339,-633.79,9.693e-05,2]
[348321392,1736445035350,-1127.98,9.693e-05,2]
[348321394,1736445035359,-500.0,9.693e-05,2]
[348321396,1736445035369,-500.0,9.693e-05,2]
[348321398,1736445035378,-500.0,9.693e-05,2]
[348321400,1736445035388,-500.0,9.693e-05,2]
[348321402,1736445035398,-500.0,9.693e-05,2]
[348321403,1736445035407,-500.0,9.693e-05,2]
[348321405,1736445035417,-500.0,9.693e-05,2]
[348321407,1736445035426,-500.0,9.693e-05,2]
[348321409,1736445035436,-500.0,9.693e-05,2]
[348321411,1736445035449,-500.0,9.693e-05,2]
[348321413,1736445035460,-500.0,9.693e-05,2]
[348321415,1736445035470,-500.0,9.693e-05,2]
[348321417,1736445035479,-500.0,9.693e-05,2]
[348321419,1736445035490,-500.0,9.693e-05,2]
[348321420,1736445035499,-500.0,9.693e-05,2]
[348321422,1736445035509,-500.0,9.693e-05,2]
[348321424,1736445035519,-500.0,9.693e-05,2]
[348321426,1736445035530,-500.0,9.693e-05,2]
[348321428,1736445035541,-500.0,9.693e-05,2]
[348321430,1736445035550,-500.0,9.693e-05,2]
[348321432,1736445035559,-500.0,9.693e-05,2]
[348321434,1736445035569,-283.03189573,9.693e-05,2]
[348321436,1736445035578,-500.0,9.693e-05,2]
[348321437,1736445035587,-500.0,9.693e-05,2]
[348321439,1736445035596,-500.0,9.693e-05,2]
[348321441,1736445035606,-797.05,9.693e-05,2]
[348321443,1736445035615,-500.0,9.693e-05,2]
[348321445,1736445035625,-2257.86,9.693e-05,2]
[348321446,1736445035634,-500.0,9.693e-05,2]
[348321448,1736445035644,-500.0,9.693e-05,2]
[348321450,1736445035654,-500.0,9.693e-05,2]
[348321452,1736445035663,-500.0,9.693e-05,2]
[348321454,1736445035673,-500.0,9.693e-05,2]
[348321456,1736445035682,-500.0,9.693e-05,2]
[348321458,1736445035692,-500.0,9.693e-05,2]
[348321459,1736445035701,-500.0,9.693e-05,2]
[348321460,1736445035710,-500.0,9.693e-05,2]
[348321461,1736445035719,-500.0,9.693e-05,2]
[348321462,1736445035728,-500.0,9.693e-05,2]
[348321463,1736445035737,-500.0,9.693e-05,2]
[348321464,1736445035746,-542.96,9.693e-05,2]
[348321465,1736445035754,-500.0,9.693e-05,2]
[348321466,1736445035763,-500.0,9.693e-05,2]
[348321467,1736445035775,-500.0,9.693e-05,2]
[348321468,1736445035784,-1602.35,9.693e-05,2]
[348321469,1736445035793,-646.67,9.693e-05,2]
[348321470,1736445035802,-500.0,9.693e-05,2]
[348321471,1736445035811,-501.21178256,9.693e-05,2]
[348321473,1736445035821,-500.0,9.693e-05,2]
[348321475,1736445035831,-500.0,9.693e-05,2]
[348321477,1736445035841,-500.0,9.693e-05,2]
[348321479,1736445035851,-501.44987183,9.693e-05,2]
[348321481,1736445035860,-500.0,9.693e-05,2]
[348321483,1736445035870,-500.88144391,9.693e-05,2]
[348321485,1736445035879,-3647.11,9.693e-05,2]
[348321487,1736445035888,-500.66146786,9.693e-05,2]
[348321489,1736445035897,-1094.76,9.693e-05,2]
[348321491,1736445035907,-500.0,9.693e-05,2]
[348321493,1736445035916,-500.0,9.693e-05,2]
[348321495,1736445035925,-740.12,9.693e-05,2]
[348321497,1736445035935,-500.0,9.693e-05,2]
[348321499,1736445035945,-500.0,9.693e-05,2]
[348321501,1736445035955,-500.0,9.693e-05,2]
[348321503,1736445035964,-500.0,9.693e-05,2]
[348321505,1736445035974,-500.33990254,9.693e-05,2]
[348321507,1736445035983,-1139.06,9.693e-05,2]
[348321509,1736445035994,-804.02,9.693e-05,2]
[348321511,1736445036003,-500.0,9.693e-05,2]
[348321513,1736445036013,-500.0,9.693e-05,2]
[348321514,1736445036023,-500.0,9.693e-05,2]
[348321516,1736445036033,-641.62,9.693e-05,2]
[348321518,1736445036042,-500.0,9.693e-05,2]
[348321520,1736445036051,-500.0,9.693e-05,2]
[348321522,1736445036060,-500.0,9.693e-05,2]
[348321524,1736445036069,-500.0,9.693e-05,2]
[348321526,1736445036078,-2097.6,9.693e-05,2]
[348321528,1736445036088,-500.0,9.693e-05,2]
[348321530,1736445036097,-500.0,9.693e-05,2]
[348321532,1736445036107,-500.0,9.693e-05,2]
[348321534,1736445036116,-500.0,9.693e-05,2]
[348321536,1736445036125,-500.0,9.693e-05,2]
[348321538,1736445036135,-500.0,9.693e-05,2]
[348321540,1736445036147,-7895.7,9.693e-05,2]
[348321542,1736445036157,-500.0,9.693e-05,2]
[348321544,1736445036168,-3771.66,9.693e-05,2]
[348321546,1736445036177,-500.0,9.693e-05,2]
[348321549,1736445036187,-500.62233214,9.693e-05,2]
[348321550,1736445036196,-500.0,9.693e-05,2]
[348321553,1736445036206,-500.0,9.693e-05,2]
[348321554,1736445036215,-500.0,9.693e-05,2]
[348321556,1736445036224,-501.04485815,9.693e-05,2]
[348321558,1736445036234,-500.0,9.693e-05,2]
[348321560,1736445036246,-500.0,9.693e-05,2]
[348321562,1736445036256,-500.0,9.693e-05,2]
[348321564,1736445036266,-500.0,9.693e-05,2]
[348321566,1736445036278,-500.0,9.693e-05,2]
[348321568,1736445036288,-500.0,9.693e-05,2]
[348321570,1736445036298,-500.0,9.693e-05,2]
[348321572,1736445036307,-500.0,9.693e-05,2]
[348321574,1736445036318,-500.0,9.693e-05,2]
[348321576,1736445036328,-500.0,9.693e-05,2]
[348321578,1736445036338,-500.0,9.693e-05,2]
[348321580,1736445036347,-500.72478975,9.693e-05,2]
[348321582,1736445036356,-500.0,9.693e-05,2]
[348321584,1736445036366,-500.0,9.693e-05,2]
[348321586,1736445036375,-870.63,9.693e-05,2]
[348321588,1736445036384,-2391.8,9.693e-05,2]
[348321590,1736445036394,-496.03928489,9.693e-05,2]
[348321592,1736445036403,-500.0,9.693e-05,2]
[348321594,1736445036413,-500.0,9.693e-05,2]
[348321596,1736445036422,-500.0,9.693e-05,2]
[348321598,1736445036431,-500.0,9.693e-05,2]
[348321600,1736445036440,-500.37222965,9.693e-05,2]
[348321602,1736445036450,-2292.14,9.693e-05,2]
[348321604,1736445036462,-436.680334,9.693e-05,2]
[348321606,1736445036472,-2614.75,9.693e-05,2]
[348321608,1736445036482,-594.73682738,9.693e-05,2]
[348321610,1736445036492,-500.62307411,9.693e-05,2]
[348321612,1736445036502,-500.8119209,9.693e-05,2]
[348321614,1736445036511,-662.16,9.693e-05,2]
[348321616,1736445036521,-500.0,9.693e-05,2]
[348321618,1736445036531,-500.0,9.693e-05,2]
[348321620,1736445036541,-500.0,9.693e-05,2]
[348321622,1736445036550,-160.446838,9.693e-05,2]
[348321624,1736445036559,-500.0,9.693e-05,2]
[348321626,1736445036568,-500.0,9.693e-05,2]
[348321628,1736445036578,-501.71125236,9.693e-05,2]
[348321629,1736445036587,-157.989612,9.693e-05,2]
[348321631,1736445036597,-500.0,9.693e-05,2]
[348321634,1736445036607,-1401.24,9.693e-05,2]
[348321636,1736445036617,-769.38,9.693e-05,2]
[348321638,1736445036626,-500.0,9.693e-05,2]
[348321640,1736445036636,-500.0,9.693e-05,2]
[348321642,1736445036646,-500.32714515,9.693e-05,2]
[348321644,1736445036655,-500.0,9.693e-05,2]
[348321645,1736445036665,-500.0,9.693e-05,2]
[348321648,1736445036675,-500.0,9.693e-05,2]
[348321650,1736445036684,-500.78555782,9.693e-05,2]
[348321651,1736445036694,-500.0,9.693e-05,2]
[348321653,1736445036703,-500.0,9.693e-05,2]
[348321655,1736445036713,-500.0,9.693e-05,2]
[348321658,1736445036723,-2353.93,9.693e-05,2]
[348321660,1736445036732,-500.0,9.693e-05,2]
[348321662,1736445036741,-500.0,9.693e-05,2]
[348321663,1736445036751,-500.43711958,9.693e-05,2]
[348321666,1736445036761,-500.0,9.693e-05,2]
[348321667,1736445036770,-1095.26,9.693e-05,2]
[348321670,1736445036782,-577.19,9.693e-05,2]
[348321671,1736445036792,-511.6,9.693e-05,2]
[348321673,1736445036802,-500.0,9.693e-05,2]
[348321676,1736445036812,-1149.2,9.693e-05,2]
[348321677,1736445036821,-500.0,9.693e-05,2]
[348321679,1736445036831,-500.0,9.693e-05,2]
[348321681,1736445036840,-500.0,9.693e-05,2]
[348321683,1736445036849,-479.567355,9.693e-05,2]
[348321685,1736445036858,-500.0,9.693e-05,2]
[348321688,1736445036868,-500.0,9.693e-05,2]
[348321690,1736445036878,-1992.84,9.693e-05,2]
[348321692,1736445036889,-500.0,9.693e-05,2]
[348321694,1736445036898,-631.62386648,9.693e-05,2]
[348321696,1736445036908,-500.83336607,9.693e-05,2]
[348321698,1736445036918,-500.0,9.693e-05,2]
[348321700,1736445036928,-501.82421517,9.693e-05,2]
[348321702,1736445036938,-500.0,9.693e-05,2]
[348321704,1736445036948,-500.0,9.693e-05,2]
[348321706,1736445036957,-500.0,9.693e-05,2]
[348321708,1736445036966,-500.59320966,9.693e-05,2]
[348321710,1736445036975,-500.63555834,9.693e-05,2]
[348321712,1736445036986,-500.0,9.693e-05,2]
[348321714,1736445036996,-500.0,9.693e-05,2]
[348321716,1736445037005,-832.87,9.693e-05,2]
[348321718,1736445037015,-500.0,9.693e-05,2]
[348321720,1736445037024,-500.46353589,9.693e-05,2]
[348321722,1736445037033,-822.98,9.693e-05,2]
[348321724,1736445037042,-500.0,9.693e-05,2]
[348321725,1736445037051,-500.0,9.693e-05,2]
[348321727,1736445037061,-500.0,9.693e-05,2]
[348321729,1736445037071,-500.0,9.693e-05,2]
[348321731,1736445037079,-500.0,9.693e-05,2]
[348321733,1736445037088,-500.0,9.693e-05,2]
[348321735,1736445037098,-500.0,9.693e-05,2]
[348321737,1736445037107,-500.0,9.693e-05,2]
[348321739,1736445037116,-749.02,9.693e-05,2]
[348321741,1736445037126,-500.40893615,9.693e-05,2]
[348321743,1736445037135,-500.0,9.693e-05,2]
[348321745,1736445037145,-609.34,9.693e-05,2]
[348321747,1736445037154,-500.0,9.693e-05,2]
[348321749,1736445037164,-500.18632381,9.693e-05,2]
[348321751,1736445037174,-500.0,9.693e-05,2]
[348321753,1736445037183,-500.0,9.693e-05,2]
[348321755,1736445037193,-500.55308979,9.693e-05,2]
[348321757,1736445037202,-500.0,9.693e-05,2]
[348321759,1736445037211,-500.0,9.693e-05,2]
[348321761,1736445037221,-501.29017768,9.693e-05,2]
[348321763,1736445037230,-500.0,9.693e-05,2]
[348321766,1736445037240,-1200.82,9.693e-05,2]
[348321767,1736445037249,-500.0,9.693e-05,2]
[348321769,1736445037258,-500.0,9.693e-05,2]
[348321772,1736445037268,-501.06486039,9.693e-05,2]
[348321774,1736445037280,-864.01,9.693e-05,2]
[348321776,1736445037289,-500.0,9.693e-05,2]
[348321778,1736445037298,-500.0,9.693e-05,2]
[348321780,1736445037308,-500.0,9.693e-05,2]
[348321782,1736445037317,-500.0,9.693e-05,2]
[348321783,1736445037327,-500.0,9.693e-05,2]
[348321786,1736445037336,-1068.95,9.693e-05,2]
[348321787,1736445037346,-500.0,9.693e-05,2]
[348321789,1736445037355,-500.0,9.693e-05,2]
[348321791,1736445037366,-500.0,9.693e-05,2]
[348321794,1736445037376,-500.0,9.693e-05,2]
[348321795,1736445037385,-500.0,9.693e-05,2]
[348321797,1736445037394,-500.57860381,9.693e-05,2]
[348321799,1736445037404,-915.32,9.693e-05,2]
[348321802,1736445037414,-345.97877456,9.693e-05,2]
[348321804,1736445037424,-500.0,9.693e-05,2]
[348321806,1736445037433,-500.0,9.693e-05,2]
[348321808,1736445037443,-500.0,9.693e-05,2]
[348321810,1736445037453,-500.0,9.693e-05,2]
[348321812,1736445037464,-661.21,9.693e-05,2]
[348321813,1736445037473,-500.0,9.693e-05,2]
[348321815,1736445037482,-610.29,9.693e-05,2]
[348321817,1736445037492,-500.0,9.693e-05,2]
[348321819,1736445037502,-500.0,9.693e-05,2]
[348321821,1736445037512,-500.0,9.693e-05,2]
[348321823,1736445037521,-500.0,9.693e-05,2]
[348321826,1736445037533,-500.0,9.693e-05,2]
[348321828,1736445037544,-500.0,9.693e-05,2]
[348321831,1736445037554,-1573.31,9.693e-05,2]
[348321833,1736445037563,-500.0,9.693e-05,2]
[348321834,1736445037572,-500.0,9.693e-05,2]
[348321836,1736445037581,-500.0,9.693e-05,2]
[348321838,1736445037591,-500.0,9.693e-05,2]
[348321841,1736445037600,-500.0,9.693e-05,2]
[348321845,1736445037611,-500.0,9.693e-05,2]
[348321848,1736445037621,-541.67718655,9.693e-05,2]
[348321850,1736445037630,-861.03,9.693e-05,2]
[348321853,1736445037640,-496.85433125,9.693e-05,2]
[348321856,1736445037649,-500.0,9.693e-05,2]
[348321858,1736445037659,-3452.34,9.693e-05,2]
[348321860,1736445037668,-500.0,9.693e-05,2]
[348321862,1736445037678,-500.78446986,9.693e-05,2]
[348321863,1736445037688,-500.0,9.693e-05,2]
[348321864,1736445037698,-500.0,9.693e-05,2]
[348321865,1736445037707,-500.0,9.693e-05,2]
[348321867,1736445037718,-886.82,9.693e-05,2]
[348321869,1736445037727,-500.0,9.693e-05,2]
[348321871,1736445037736,-500.0,9.693e-05,2]
[348321873,1736445037746,-501.60327089,9.693e-05,2]
[348321875,1736445037755,-1572.61,9.693e-05,2]
[348321877,1736445037765,-500.89400238,9.693e-05,2]
[348321879,1736445037775,-500.0,9.693e-05,2]
[348321880,1736445037784,-500.58859942,9.693e-05,2]
[348321882,1736445037794,-500.0,9.693e-05,2]
[348321884,1736445037803,-500.0,9.693e-05,2]
[348321886,1736445037813,-444.08128443,9.693e-05,2]
[348321888,1736445037822,-500.0,9.693e-05,2]
[348321890,1736445037832,-500.0,9.693e-05,2]
[348321891,1736445037841,-500.26126525,9.693e-05,2]
[348321893,1736445037851,-500.0,9.693e-05,2]
[348321895,1736445037860,-500.53065654,9.693e-05,2]